fUSD/lending_fUSD_20250111
["ID","MTS","AMOUNT","RATE_DAILY","PERIOD"]
[348501123,1736590245987,-500.0,9.895e-05,2]
[348501124,1736590245996,-504.66095966,9.895e-05,2]
[348501125,1736590246005,-471.947159,9.895e-05,2]
[348501126,1736590246014,-500.0,9.895e-05,2]
[348501127,1736590246024,-500.0,9.895e-05,2]
[348501128,1736590246034,-500.0,9.895e-05,2]
[348501129,1736590246042,-500.0,9.895e-05,2]
[348501130,1736590246052,-501.25482059,9.895e-05,2]
[348501131,1736590246063,-476.90356869,9.895e-05,2]
[348501132,1736590246072,-500.0,9.895e-05,2]
[348501133,1736590246082,-500.0,9.895e-05,2]
[348501134,1736590246091,-500.0,9.895e-05,2]
[348501135,1736590246101,-500.0,9.895e-05,2]
[348501136,1736590246110,-500.0,9.895e-05,2]
[348501138,1736590246120,-209.49143247,9.895e-05,2]
[348501139,1736590246130,-500.0,9.895e-05,2]
[348501140,1736590246139,-219.49,9.895e-05,2]
[348501141,1736590246148,-500.0,9.895e-05,2]
[348501142,1736590246157,-500.0,9.895e-05,2]
[348501143,1736590246166,-500.0,9.895e-05,2]
[348501144,1736590246175,-500.0,9.895e-05,2]
[348501145,1736590246184,-500.0,9.895e-05,2]
[348501146,1736590246194,-505.24670119,9.895e-05,2]
[348501147,1736590246203,-1014.62,9.895e-05,2]
[348501148,1736590246213,-500.0,9.895e-05,2]
[348501149,1736590246223,-500.0,9.895e-05,2]
[348501150,1736590246232,-500.0,9.895e-05,2]
[348501151,1736590246241,-500.0,9.895e-05,2]
[348501152,1736590246251,-500.0,9.895e-05,2]
[348501153,1736590246260,-500.0,9.895e-05,2]
[348501154,1736590246269,-500.0,9.895e-05,2]
[348501155,1736590246279,-500.0,9.895e-05,2]
[348501156,1736590246288,-500.0,9.895e-05,2]
[348501157,1736590246297,-500.0,9.895e-05,2]
[348501158,1736590246306,-500.0,9.895e-05,2]
[348501159,1736590246316,-2018.42,9.895e-05,2]
[348501160,1736590246325,-454.77923634,9.895e-05,2]
[348501161,1736590246335,-500.0,9.895e-05,2]
[348501162,1736590246344,-500.0,9.895e-05,2]
[348501163,1736590246354,-500.0,9.895e-05,2]
[348501164,1736590246363,-500.0,9.895e-05,2]
[348501165,1736590246372,-500.0,9.895e-05,2]
[348501166,1736590246381,-500.0,9.895e-05,2]
[348501167,1736590246390,-500.0,9.895e-05,2]
[348501168,1736590246400,-500.0,9.895e-05,2]
[348501169,1736590246409,-500.0,9.895e-05,2]
[348501170,1736590246419,-500.0,9.895e-05,2]
[348501171,1736590246430,-500.0,9.895e-05,2]
[348501172,1736590246439,-500.0,9.895e-05,2]
[348501173,1736590246448,-500.0,9.895e-05,2]
[348501174,1736590246457,-500.0,9.895e-05,2]
[348501175,1736590246467,-500.0,9.895e-05,2]
[348501176,1736590246476,-354.86,9.895e-05,2]
[348501177,1736590246485,-500.0,9.895e-05,2]
[348501178,1736590246494,-500.0,9.895e-05,2]
[348501179,1736590246504,-500.0,9.895e-05,2]
[348501180,1736590246513,-500.0,9.895e-05,2]
[348501181,1736590246523,-500.0,9.895e-05,2]
[348501182,1736590246533,-500.0,9.895e-05,2]
[348501183,1736590246542,-500.0,9.895e-05,2]
[348501184,1736590246551,-500.0,9.895e-05,2]
[348501185,1736590246561,-500.0,9.895e-05,2]
[348501186,1736590246570,-500.0,9.895e-05,2]
[348501187,1736590246579,-244.31,9.895e-05,2]
[348501188,1736590246588,-500.0,9.895e-05,2]
[348501189,1736590246597,-500.0,9.895e-05,2]
[348501190,1736590246607,-500.0,9.895e-05,2]
[348501191,1736590246616,-500.0,9.895e-05,2]
[348501192,1736590246625,-5000.0,9.895e-05,2]
[348501193,1736590246634,-500.0,9.895e-05,2]
[348501194,1736590246643,-500.0,9.895e-05,2]
[348501195,1736590246652,-500.0,9.895e-05,2]
[348501196,1736590246661,-500.0,9.895e-05,2]
[348501197,1736590246670,-500.0,9.895e-05,2]
[348501198,1736590246679,-500.0,9.895e-05,2]
[348501199,1736590246688,-500.0,9.895e-05,2]
[348501200,1736590246697,-500.0,9.895e-05,2]
[348501201,1736590246706,-500.0,9.895e-05,2]
[348501202,1736590246715,-500.0,9.895e-05,2]
[348501203,1736590246724,-500.0,9.895e-05,2]
[348501204,1736590246733,-500.0,9.895e-05,2]
[348501205,1736590246742,-500.0,9.895e-05,2]
[348501206,1736590246751,-500.0,9.895e-05,2]
[348501207,1736590246759,-500.0,9.895e-05,2]
[348501208,1736590246769,-500.0,9.895e-05,2]
[348501209,1736590246777,-500.0,9.895e-05,2]
[348501210,1736590246786,-500.0,9.895e-05,2]
[348501211,1736590246795,-500.0,9.895e-05,2]
[348501212,1736590246804,-500.0,9.895e-05,2]
[348501213,1736590246813,-500.0,9.895e-05,2]
[348501214,1736590246822,-500.0,9.895e-05,2]
[348501215,1736590246831,-500.0,9.895e-05,2]
[348501216,1736590246840,-500.0,9.895e-05,2]
[348501217,1736590246849,-500.0,9.895e-05,2]
[348501218,1736590246858,-500.0,9.895e-05,2]
[348501219,1736590246868,-500.0,9.895e-05,2]
[348501220,1736590246877,-500.0,9.895e-05,2]
[348501221,1736590246886,-500.0,9.895e-05,2]
[348501222,1736590246895,-500.0,9.895e-05,2]
[348501223,1736590246904,-500.0,9.895e-05,2]
[348501224,1736590246913,-500.0,9.895e-05,2]
[348501225,1736590246922,-500.0,9.895e-05,2]
[348501226,1736590246931,-500.0,9.895e-05,2]
[348501227,1736590246940,-500.0,9.895e-05,2]
[348501228,1736590246949,-500.0,9.895e-05,2]
[348501229,1736590246958,-500.0,9.895e-05,2]
[348501230,1736590246967,-500.0,9.895e-05,2]
[348501231,1736590246976,-500.0,9.895e-05,2]
[348501232,1736590246985,-1111.65,9.895e-05,2]
[348501233,1736590246994,-500.0,9.895e-05,2]
[348501234,1736590247002,-500.0,9.895e-05,2]
[348501235,1736590247011,-500.0,9.895e-05,2]
[348501236,1736590247020,-500.0,9.895e-05,2]
[348501237,1736590247029,-500.0,9.895e-05,2]
[348501238,1736590247037,-500.0,9.895e-05,2]
[348501239,1736590247046,-500.0,9.895e-05,2]
[348501240,1736590247055,-500.0,9.895e-05,2]
[348501241,1736590247064,-500.0,9.895e-05,2]
[348501242,1736590247073,-500.0,9.895e-05,2]
[348501243,1736590247082,-500.0,9.895e-05,2]
[348501244,1736590247091,-500.0,9.895e-05,2]
[348501245,1736590247099,-500.0,9.895e-05,2]
[348501246,1736590247108,-500.0,9.895e-05,2]
[348501247,1736590247117,-2339.32,9.895e-05,2]
[348501248,1736590247126,-650.72,9.895e-05,2]
[348501249,1736590247135,-500.0,9.895e-05,2]
[348501250,1736590247144,-500.0,9.895e-05,2]
[348501251,1736590247153,-500.0,9.895e-05,2]
[348501252,1736590247162,-500.0,9.895e-05,2]
[348501253,1736590247171,-500.0,9.895e-05,2]
[348501254,1736590247179,-500.0,9.895e-05,2]
[348501255,1736590247188,-771.62,9.895e-05,2]
[348501256,1736590247197,-500.0,9.895e-05,2]
[348501257,1736590247206,-500.0,9.895e-05,2]
[348501258,1736590247215,-500.0,9.895e-05,2]
[348501259,1736590247224,-500.0,9.895e-05,2]
[348501260,1736590247233,-1123.79,9.895e-05,2]
[348501261,1736590247241,-500.0,9.895e-05,2]
[348501262,1736590247250,-894.6,9.895e-05,2]
[348501263,1736590247259,-2115.28,9.895e-05,2]
[348501264,1736590247268,-910.35,9.895e-05,2]
[348501265,1736590247277,-888.0,9.895e-05,2]
[348501266,1736590247286,-812.99,9.895e-05,2]
[348501267,1736590247295,-760.66,9.895e-05,2]
[348501268,1736590247304,-500.0,9.895e-05,2]
[348501269,1736590247313,-854.91,9.896e-05,2]
[348501270,1736590247322,-1380.27,9.896e-05,2]
[348501271,1736590247331,-666.81,9.896e-05,2]
[348501272,1736590247343,-1329.68,9.896e-05,2]
[348501273,1736590247353,-533.69,9.896e-05,2]
[348501274,1736590247362,-500.0,9.896e-05,2]
[348501275,1736590247371,-500.0,9.896e-05,2]
[348501276,1736590247380,-874.14,9.896e-05,2]
[348501277,1736590247389,-699.29,9.896e-05,2]
[348501278,1736590247398,-500.0,9.896e-05,2]
[348501279,1736590247407,-500.0,9.896e-05,2]
[348501280,1736590247416,-500.0,9.896e-05,2]
[348501281,1736590247425,-500.0,9.896e-05,2]
[348501282,1736590247435,-787.06,9.896e-05,2]
[348501283,1736590247444,-858.28,9.896e-05,2]
[348501284,1736590247455,-1450.79,9.896e-05,2]
[348501285,1736590247464,-3291.26,9.896e-05,2]
[348501286,1736590247473,-500.0,9.896e-05,2]
[348501287,1736590247482,-500.0,9.896e-05,2]
[348501288,1736590247492,-1000.0,9.896e-05,2]
[348501289,1736590247501,-521.74,9.896e-05,2]
[348501290,1736590247510,-897.27,9.896e-05,2]
[348501291,1736590247519,-500.0,9.896e-05,2]
[348501292,1736590247527,-500.0,9.896e-05,2]
[348501293,1736590247536,-641.33,9.896e-05,2]
[348501294,1736590247545,-1513.95,9.896e-05,2]
[348501295,1736590247555,-500.0,9.896e-05,2]
[348501296,1736590247564,-965.12,9.896e-05,2]
[348501297,1736590247574,-500.0,9.896e-05,2]
[348501298,1736590247583,-500.0,9.896e-05,2]
[348501299,1736590247592,-862.687,9.898e-05,2]
[348501300,1736590247601,-1100.0,9.97e-05,2]
[348501301,1736590247610,-9818.0,9.973e-05,2]
[348501302,1736590247619,-150.848698,9.973e-05,2]
[348501303,1736590247629,-151.847696,9.973e-05,2]
[348501304,1736590247638,-151.847696,9.973e-05,2]
[348501305,1736590247647,-302.78677831,9.973e-05,2]
[348501306,1736590247656,-150.848698,9.973e-05,2]
[348501307,1736590247666,-152.846694,9.973e-05,2]
[348501308,1736590247675,-150.848698,9.973e-05,2]
[348501309,1736590247684,-150.848698,9.973e-05,2]
[348501310,1736590247693,-150.848698,9.973e-05,2]
[348501311,1736590247702,-160.838678,9.973e-05,2]
[348501312,1736590247712,-160.838678,9.973e-05,2]
[348501313,1736590247721,-151.847696,9.973e-05,2]
[348501314,1736590247730,-160.838678,9.973e-05,2]
[348501315,1736590247740,-213.36122324,9.973e-05,2]
[348501316,1736590247749,-150.848698,9.973e-05,2]
[348501317,1736590247759,-1996.6666437,9.992e-05,2]
[348501318,1736590247768,-5127.2541136,9.992e-05,2]
[348501319,1736590247778,-1866.4521602,9.993e-05,2]
[348501320,1736590247790,-1736.2376767,9.993e-05,2]
[348501321,1736590247801,-1606.0231932,9.993e-05,2]
[348501322,1736590247810,-1475.8087097,9.993e-05,2]
[348501323,1736590247819,-1345.5942263,9.993e-05,2]
[348501324,1736590247829,-4792.8754389,9.993e-05,2]
[348501325,1736590247838,-4458.4967642,9.993e-05,2]
[348501326,1736590247847,-4124.1180895,9.993e-05,2]
[348501327,1736590247856,-3789.7394148,9.993e-05,2]
[348501328,1736590247866,-3455.3607401,9.993e-05,2]
[348501329,1736590247877,-20466.58270052,9.996e-05,2]
[348501330,1736590247887,-18157.41469161,9.998e-05,2]
[348501331,1736590247897,-500.0,9.999e-05,2]
[348501332,1736590247907,-500.0,9.999e-05,2]
[348501333,1736590247916,-929.49,9.999e-05,2]
[348501334,1736590247925,-1324.0,9.999e-05,2]
[348501335,1736590247934,-500.0,9.999e-05,2]
[348501336,1736590247943,-928.21,9.999e-05,2]
[348501337,1736590247952,-500.0,9.999e-05,2]
[348501338,1736590247962,-500.0,9.999e-05,2]
[348501339,1736590247971,-834.55,9.999e-05,2]
[348501340,1736590247981,-2222.64,9.999e-05,2]
[348501341,1736590247990,-4075993.50167636,0.0001,2]
[348501342,1736590248309,-590.74303751,0.0001,2]
[348501343,1736590248325,-867.51146052,0.0001,2]
[348501344,1736590248341,-54007.4511261,0.0001,2]
[348501345,1736590248352,-348620.34777938,0.0001,2]
[348501346,1736590248378,-500.0,9.894e-05,2]
[348501347,1736590248387,-51564.21292239,0.0001,2]
[348501348,1736590248399,-10084.50379836,0.0001,2]
[348501349,1736590248410,-50823.59026493,0.0001,2]
[348501350,1736590248442,-13253.22423378,0.0001,2]
[348501351,1736590248453,-941.68,0.0001,2]
[348501352,1736590248730,-502.06316528,9.973e-05,2]
[348501353,1736590248740,-13870.6845957,0.0001,2]
[348501354,1736590248751,-3771.173325,0.0001,2]
[348501355,1736590248763,-82359.55020781,0.0001,2]
[348501356,1736590248775,-17476.08560783,0.0001,2]
[348501357,1736590248790,-603870.73380507,0.0001,2]
[348501358,1736590248801,-17409.75744359,0.0001,2]
[348501359,1736590248813,-779012.13465379,0.0001,2]
[348501360,1736590248825,-3039.9,0.0001,2]
[348501361,1736590248836,-30828.26017029,0.0001,2]
[348501362,1736590248847,-318.26635,0.0001,2]
[348501363,1736590248858,-1644.5419948,0.0001,2]
[348501364,1736590248869,-607.15381854,0.0001,2]
[348501365,1736590248884,-5307.3066168,0.0001,2]
[348501366,1736590249095,-376.87925389,9.893e-05,2]
[348501367,1736590249107,-123.12074611,9.893e-05,2]
[348501368,1736590249117,-12839.80723205,0.0001,2]
[348501369,1736590249128,-360.08234564,0.0001,2]
[348501370,1736590249140,-3120.0000015,0.0001,2]
[348501371,1736590249151,-15514.15938591,0.0001,2]
[348501372,1736590249162,-13265.400005,0.0001,2]
[348501373,1736590249175,-5700.0,0.0001,2]
[348501374,1736590249186,-531.41457158,0.0001,2]
[348501375,1736590249197,-4692.2214724,0.0001,2]
[348501376,1736590249299,-605.4,0.0001,2]
[348501377,1736590249311,-3695.21734289,0.0001,2]
[348501378,1736590249323,-15239.98944602,0.0001,2]
[348501379,1736590249341,-65170.45454495,0.0001,2]
[348501380,1736590249561,-2547.50332925,0.0001,2]
[348501381,1736590249573,-11706.05840731,0.0001,2]
[348501382,1736590249585,-602.80619902,0.0001,2]
[348501383,1736590249597,-184465.51052005,0.0001,2]
[348501387,1736590363343,880.04,8.219e-05,2]
[348501388,1736590504393,164.0,8.219e-05,30]
[348501389,1736590587712,1000.0,0.0002,120]
[348501390,1736590618364,1000.0,8e-05,2]
[348501391,1736590658584,1500.0,0.0002,120]
[348501392,1736590718778,500.0,0.0002,120]
[348501393,1736590803096,164.0,8.219e-05,30]
[348501396,1736590983046,250.0,9.02e-05,2]
[348501397,1736591051326,327.44,9.02e-05,2]
[348501398,1736591103582,164.0,8.219e-05,30]
[348501399,1736591174050,1000.0,9.009e-05,2]
[348501400,1736591229782,500.000001,0.0002,120]
[348501404,1736591317085,250.0,9.058e-05,2]
[348501405,1736591317138,382.62,9.058e-05,2]
[348501406,1736591319515,873.47,8.219e-05,2]
[348501411,1736591431619,-324.2116231,9.102e-05,2]
[348501412,1736591431630,-19831.52,9.102e-05,2]
[348501413,1736591431639,-210.81,9.129e-05,2]
[348501414,1736591431648,-226.431,9.5e-05,2]
[348501415,1736591431659,-654.99,9.589e-05,2]
[348501416,1736591431669,-500.0,9.664e-05,2]
[348501417,1736591431679,-609.98,9.67e-05,2]
[348501418,1736591431688,-4607.84133287,9.723e-05,2]
[348501419,1736591431697,-1597.8639,9.794e-05,2]
[348501420,1736591431706,-500.0,9.893e-05,2]
[348501421,1736591431715,-500.0,9.893e-05,2]
[348501422,1736591431725,-500.0,9.893e-05,2]
[348501423,1736591431734,-500.0,9.893e-05,2]
[348501424,1736591431743,-500.0,9.893e-05,2]
[348501425,1736591431753,-500.0,9.893e-05,2]
[348501426,1736591431762,-467.87159681,9.893e-05,2]
[348501427,1736591431771,-500.0,9.893e-05,2]
[348501428,1736591431781,-500.0,9.893e-05,2]
[348501429,1736591431790,-500.0,9.893e-05,2]
[348501430,1736591431799,-500.0,9.893e-05,2]
[348501431,1736591431809,-500.0,9.893e-05,2]
[348501432,1736591431818,-500.0,9.893e-05,2]
[348501433,1736591431830,-500.0,9.893e-05,2]
[348501434,1736591431839,-500.0,9.893e-05,2]
[348501435,1736591431848,-500.0,9.893e-05,2]
[348501436,1736591431858,-500.0,9.893e-05,2]
[348501437,1736591431867,-500.0,9.893e-05,2]
[348501438,1736591431877,-500.0,9.893e-05,2]
[348501439,1736591431886,-500.0,9.893e-05,2]
[348501440,1736591431898,-500.0,9.893e-05,2]
[348501441,1736591431908,-500.0,9.893e-05,2]
[348501442,1736591431918,-591.9,9.893e-05,2]
[348501443,1736591431927,-500.0,9.893e-05,2]
[348501444,1736591431936,-500.0,9.893e-05,2]
[348501445,1736591431947,-500.0,9.893e-05,2]
[348501446,1736591431957,-500.0,9.893e-05,2]
[348501447,1736591431967,-505.79,9.893e-05,2]
[348501448,1736591431977,-500.0,9.893e-05,2]
[348501449,1736591431987,-500.0,9.893e-05,2]
[348501450,1736591431996,-500.0,9.893e-05,2]
[348501451,1736591432005,-592.97643171,9.893e-05,2]
[348501452,1736591432014,-500.0,9.893e-05,2]
[348501453,1736591432023,-500.0,9.893e-05,2]
[348501454,1736591432032,-500.0,9.893e-05,2]
[348501455,1736591432042,-500.0,9.893e-05,2]
[348501456,1736591432051,-500.0,9.893e-05,2]
[348501457,1736591432060,-500.0,9.893e-05,2]
[348501458,1736591432069,-500.0,9.893e-05,2]
[348501459,1736591432078,-500.0,9.893e-05,2]
[348501460,1736591432087,-500.0,9.893e-05,2]
[348501461,1736591432096,-500.0,9.893e-05,2]
[348501462,1736591432105,-523.24,9.893e-05,2]
[348501463,1736591432114,-500.0,9.893e-05,2]
[348501464,1736591432123,-647.33,9.893e-05,2]
[348501465,1736591432132,-500.0,9.893e-05,2]
[348501466,1736591432143,-500.0,9.893e-05,2]
[348501467,1736591432152,-177.48,9.893e-05,2]
[348501468,1736591432161,-500.0,9.893e-05,2]
[348501469,1736591432170,-500.0,9.893e-05,2]
[348501470,1736591432179,-500.0,9.893e-05,2]
[348501471,1736591432188,-500.0,9.893e-05,2]
[348501472,1736591432197,-500.0,9.893e-05,2]
[348501473,1736591432206,-500.0,9.893e-05,2]
[348501474,1736591432215,-500.0,9.893e-05,2]
[348501475,1736591432225,-500.0,9.893e-05,2]
[348501476,1736591432234,-500.0,9.893e-05,2]
[348501478,1736591432243,-500.0,9.893e-05,2]
[348501479,1736591432252,-500.0,9.893e-05,2]
[348501481,1736591432261,-522.87,9.893e-05,2]
[348501483,1736591432270,-500.0,9.893e-05,2]
[348501484,1736591432279,-500.0,9.893e-05,2]
[348501485,1736591432288,-500.0,9.893e-05,2]
[348501487,1736591432297,-507.08,9.893e-05,2]
[348501488,1736591432306,-500.0,9.893e-05,2]
[348501489,1736591432316,-500.0,9.893e-05,2]
[348501490,1736591432326,-489.98,9.893e-05,2]
[348501491,1736591432335,-500.0,9.893e-05,2]
[348501492,1736591432345,-500.0,9.893e-05,2]
[348501493,1736591432354,-1148.53,9.893e-05,2]
[348501494,1736591432363,-2228.53,9.893e-05,2]
[348501495,1736591432372,-500.0,9.893e-05,2]
[348501496,1736591432381,-1244.6,9.893e-05,2]
[348501497,1736591432390,-500.0,9.893e-05,2]
[348501498,1736591432400,-623.61,9.893e-05,2]
[348501499,1736591432409,-500.0,9.894e-05,2]
[348501500,1736591432419,-500.0,9.894e-05,2]
[348501501,1736591432428,-500.0,9.894e-05,2]
[348501502,1736591432438,-500.0,9.894e-05,2]
[348501503,1736591432447,-500.0,9.894e-05,2]
[348501504,1736591432457,-428.88474339,9.894e-05,2]
[348501505,1736591432467,-474.44416233,9.894e-05,2]
[348501506,1736591432476,-554.16,9.894e-05,2]
[348501507,1736591432485,-628.94744418,9.894e-05,2]
[348501508,1736591432494,-500.0,9.894e-05,2]
[348501509,1736591432503,-500.0,9.894e-05,2]
[348501510,1736591432512,-500.0,9.894e-05,2]
[348501511,1736591432521,-500.0,9.894e-05,2]
[348501512,1736591432530,-500.0,9.894e-05,2]
[348501513,1736591432539,-500.0,9.894e-05,2]
[348501514,1736591432548,-422.71861853,9.894e-05,2]
[348501515,1736591432557,-500.0,9.894e-05,2]
[348501516,1736591432565,-500.0,9.894e-05,2]
[348501517,1736591432575,-813.02,9.894e-05,2]
[348501518,1736591432583,-1122.88,9.894e-05,2]
[348501519,1736591432593,-888.95,9.894e-05,2]
[348501520,1736591432602,-154.2575653,9.894e-05,2]
[348501521,1736591432652,-2050.3724347,9.894e-05,2]
[348501522,1736591432661,-911.25,9.894e-05,2]
[348501523,1736591432670,-851.0,9.894e-05,2]
[348501524,1736591432896,-668.22,9.894e-05,2]
[348501525,1736591432912,-779.12,9.894e-05,2]
[348501526,1736591432922,-500.0,9.895e-05,2]
[348501527,1736591432931,-734.69,9.895e-05,2]
[348501528,1736591432941,-15.6775753,9.895e-05,2]
[348501529,1736591432952,-484.3224247,9.895e-05,2]
[348501530,1736591432962,-500.0,9.895e-05,2]
[348501531,1736591432972,-781.14,9.895e-05,2]
[348501532,1736591432981,-500.0,9.895e-05,2]
[348501533,1736591432990,-500.0,9.895e-05,2]
[348501534,1736591432999,-1493.66,9.895e-05,2]
[348501535,1736591433008,-1431.42,9.895e-05,2]
[348501536,1736591433017,-3172.5,9.895e-05,2]
[348501537,1736591433027,-496.81435052,9.895e-05,2]
[348501544,1736591437562,-3.18564948,9.895e-05,2]
[348501545,1736591437573,-500.0,9.895e-05,2]
[348501546,1736591437584,-500.0,9.895e-05,2]
[348501547,1736591437595,-1450.44,9.895e-05,2]
[348501548,1736591437603,-500.0,9.895e-05,2]
[348501549,1736591437614,-500.0,9.895e-05,2]
[348501550,1736591437624,-881.87,9.895e-05,2]
[348501551,1736591437635,-635.44,9.895e-05,2]
[348501552,1736591437645,-945.74,9.895e-05,2]
[348501553,1736591437654,-500.0,9.895e-05,2]
[348501554,1736591437663,-512.60489015,9.895e-05,2]
[348501555,1736591437672,-1000.0,9.895e-05,2]
[348501556,1736591437681,-541.67,9.895e-05,2]
[348501557,1736591437690,-500.0,9.895e-05,2]
[348501558,1736591437699,-1486.97,9.895e-05,2]
[348501559,1736591437708,-159.83968,9.973e-05,2]
[348501560,1736591437717,-159.83968,9.973e-05,2]
[348501561,1736591437727,-159.83968,9.973e-05,2]
[348501562,1736591437736,-151.847696,9.973e-05,2]
[348501563,1736591437745,-159.83968,9.973e-05,2]
[348501564,1736591437754,-836.771,9.973e-05,2]
[348501565,1736591437763,-3314.33613058,9.98e-05,2]
[348501566,1736591437775,-2089.39301035,9.98e-05,2]
[348501567,1736591437784,-500.0,9.997e-05,2]
[348501568,1736591437793,-1110.19,9.997e-05,2]
[348501569,1736591437802,-663.75,9.997e-05,2]
[348501570,1736591437811,-1374.19,9.997e-05,2]
[348501571,1736591437822,-4077.17,9.997e-05,2]
[348501572,1736591437831,-500.0,9.997e-05,2]
[348501573,1736591437840,-500.0,9.997e-05,2]
[348501574,1736591437850,-1177.75,9.997e-05,2]
[348501575,1736591437859,-749.27,9.997e-05,2]
[348501576,1736591437868,-1882.24,9.997e-05,2]
[348501577,1736591437877,-1457.74,9.997e-05,2]
[348501579,1736591437886,-500.0,9.997e-05,2]
[348501581,1736591437899,-1408.23,9.997e-05,2]
[348501583,1736591437908,-500.0,9.997e-05,2]
[348501585,1736591437918,-732.1,9.997e-05,2]
[348501586,1736591437927,-2640.84,9.997e-05,2]
[348501588,1736591437938,-520.87,9.997e-05,2]
[348501590,1736591437946,-989.5,9.997e-05,2]
[348501592,1736591437956,-356.78404481,9.997e-05,2]
[348501596,1736591437993,-345.80595519,9.997e-05,2]
[348501598,1736591438002,-500.0,9.997e-05,2]
[348501600,1736591438011,-1740.44,9.997e-05,2]
[348501602,1736591438021,-500.0,9.997e-05,2]
[348501604,1736591438030,-500.0,9.997e-05,2]
[348501606,1736591438043,-1280.64,9.997e-05,2]
[348501608,1736591438052,-500.0,9.997e-05,2]
[348501610,1736591438061,-500.0,9.997e-05,2]
[348501612,1736591438070,-500.0,9.997e-05,2]
[348501614,1736591438080,-500.0,9.997e-05,2]
[348501616,1736591438090,-500.0,9.997e-05,2]
[348501620,1736591438100,-500.0,9.997e-05,2]
[348501623,1736591438109,-500.0,9.997e-05,2]
[348501625,1736591438118,-500.0,9.997e-05,2]
[348501627,1736591438128,-165.85126663,9.997e-05,2]
[348501628,1736591438141,-524.18760457,9.997e-05,2]
[348501629,1736591438152,-150.3211288,9.997e-05,2]
[348501630,1736591438161,-181.3978112,9.997e-05,2]
[348501631,1736591438172,-318.6021888,9.997e-05,2]
[348501632,1736591438181,-90.9377912,9.997e-05,2]
[348501633,1736591438192,-409.0622088,9.997e-05,2]
[348501634,1736591438200,-54.0127762,9.997e-05,2]
[348501637,1736591439694,-445.9872238,9.997e-05,2]
[348501638,1736591439703,-223.2427762,9.997e-05,2]
[348501639,1736591439923,-327.4,9.259e-05,2]
[348501640,1736591439932,-385.3872238,9.997e-05,2]
[348501641,1736591439942,-231.4977762,9.997e-05,2]
[348501642,1736591439954,-268.5022238,9.997e-05,2]
[348501643,1736591439963,-500.0,9.997e-05,2]
[348501644,1736591439973,-500.0,9.997e-05,2]
[348501645,1736591439983,-500.0,9.997e-05,2]
[348501646,1736591439992,-436.4977762,9.997e-05,2]
[348501647,1736591440039,-63.5022238,9.997e-05,2]
[348501648,1736591440049,-500.0,9.997e-05,2]
[348501649,1736591440058,-500.0,9.997e-05,2]
[348501650,1736591440068,-500.0,9.997e-05,2]
[348501651,1736591440077,-500.0,9.997e-05,2]
[348501652,1736591440311,-500.0,9.997e-05,2]
[348501654,1736591440322,-933.33,9.997e-05,2]
[348501656,1736591440332,-500.0,9.997e-05,2]
[348501658,1736591440340,-500.0,9.997e-05,2]
[348501660,1736591440351,-450.91431844,9.997e-05,2]
[348501664,1736591440382,-868.05568156,9.997e-05,2]
[348501666,1736591440392,-500.0,9.997e-05,2]
[348501668,1736591440401,-1026.83,9.997e-05,2]
[348501670,1736591440410,-500.0,9.997e-05,2]
[348501672,1736591440419,-500.0,9.997e-05,2]
[348501674,1736591440429,-500.0,9.997e-05,2]
[348501676,1736591440438,-371.26987948,9.998e-05,2]
[348501678,1736591440446,-393.5178596,9.998e-05,2]
[348501680,1736591440455,-500.0,9.998e-05,2]
[348501681,1736591440464,-500.0,9.998e-05,2]
[348501682,1736591440474,-500.0,9.998e-05,2]
[348501683,1736591440483,-500.0,9.998e-05,2]
[348501684,1736591440492,-500.0,9.998e-05,2]
[348501685,1736591440501,-500.0,9.998e-05,2]
[348501686,1736591440510,-500.0,9.998e-05,2]
[348501687,1736591440519,-464.38849741,9.998e-05,2]
[348501688,1736591440528,-500.0,9.998e-05,2]
[348501689,1736591440537,-500.0,9.998e-05,2]